[Event "DVM U10 2024"]
[Site "Duesseldorf"]
[Date "2024.12.29"]
[Round "7"]
[White "Wang, Hanyu"]
[Black "Yuksel, Arda Eren"]
[Result "0-1"]
[ECO "C55"]
[WhiteElo "1606"]
[BlackElo "1488"]
[Annotator "NA"]
[PlyCount "92"]
[EventDate "2024.12.23"]
[EventType "team-tourn"]
[EventRounds "7"]
[EventCountry "GER"]
[SourceTitle "playchess.com"]
[Source "ChessBase"]
[SourceQuality "1"]
[TimeControl "3300+5"]

1. e4 {[%emt 0:00:04]} e5 {[%emt 0:00:05]} 2. Nf3 {[%emt 0:00:05]} Nc6 {[%emt 0:00:13]} 3. Bc4 {[%emt 0:00:07]} Nf6 {[%emt 0:00:16]} 4. d3 {[%emt 0:00:14]} Be7 {[%emt 0:00:39]} 5. c3 {[%emt 0:00:18]} O-O {[%emt 0:01:32]} 6. O-O {[%emt 0:00:10]} d6 {[%emt 0:01:21]} 7. Bg5 {[%emt 0:00:19]} h6 {[%emt 0:00:18]} 8. Bxf6 {[%emt 0:00:06]} Bxf6 {[%emt 0:00:37]} 9. Qe2 {[%emt 0:00:16]} Bg4 {[%emt 0:01:05]} 10. Nbd2 {[%emt 0:00:08]} Bg5 {[%emt 0:01:27]} 11. Rad1 {[%emt 0:00:37]} Qf6 {[%emt 0:02:32]} 12. h3 {[%emt 0:01:20]} Bxd2 {[%emt 0:01:05]} 13. Rxd2 {[%emt 0:00:08]} Bxf3 {[%emt 0:00:28]} 14. Qxf3 {[%emt 0:00:04]} Qxf3 {[%emt 0:00:09]} 15. gxf3 {[%emt 0:00:09]} Na5 {[%emt 0:00:44]} 16. Bb3 {[%emt 0:00:15]} Nxb3 {[%emt 0:00:12]} 17. axb3 {[%emt 0:00:05]} Rfe8 {[%emt 0:00:07]} 18. d4 {[%emt 0:00:35]} Re6 {[%emt 0:00:46]} 19. Kh2 {[%emt 0:00:25]} Rf6 {[%emt 0:00:40]} 20. Rd3 {[%emt 0:00:36]} Re8 {[%emt 0:01:16]} 21. d5 {[%emt 0:00:48]} c6 {[%emt 0:00:27]} 22. dxc6 {[%emt 0:00:12]} bxc6 {[%emt 0:00:06]} 23. Re1 {[%emt 0:00:11]} Ree6 {[%emt 0:00:49]} 24. Ree3 {[%emt 0:00:12]} Rg6 {[%emt 0:00:41]} 25. c4 {[%emt 0:00:52]} Rg5 {[%emt 0:00:36]} 26. h4 {[%emt 0:01:07]} Rh5 {[%emt 0:00:14]} 27. Kh3 {[%emt 0:00:14]} g5 {[%emt 0:00:31]} 28. Kg4 {[%emt 0:03:26]} Rxh4+ {[%emt 0:00:53]} 29. Kg3 {[%emt 0:00:06]} Rg6 {[%emt 0:01:09]} 30. Rd1 {[%emt 0:00:51]} Rf4 {[%emt 0:00:39]} 31. Kg2 {[%emt 0:02:33]} g4 {[%emt 0:00:46]} 32. Kf1 {[%emt 0:00:31]} gxf3 {[%emt 0:00:24]} 33. b4 {[%emt 0:01:02]} f5 {[%emt 0:02:53]} 34. exf5 {[%emt 0:00:22]} Rxf5 {[%emt 0:00:21]} 35. c5 {[%emt 0:00:30]} d5 {[%emt 0:00:36]} 36. Rde1 {[%emt 0:04:03]} e4 {[%emt 0:01:04]} 37. Rd1 {[%emt 0:00:44]} Rfg5 {[%emt 0:00:29]} 38. Ke1 {[%emt 0:00:35]} Kf7 {[%emt 0:01:06]} 39. Kd2 {[%emt 0:00:52]} Ke6 {[%emt 0:00:41]} 40. Kc3 {[%emt 0:00:17]} Ke5 {[%emt 0:01:22]} 41. Rd2 {[%emt 0:01:40]} Rg7 {[%emt 0:00:53]} 42. Rd4 {[%emt 0:00:48]} Rb7 {[%emt 0:00:34]} 43. Rd2 {[%emt 0:00:43]} Rg8 {[%emt 0:00:29]} 44. b3 {[%emt 0:01:45]} Rgb8 {[%emt 0:00:49]} 45. Rd4 {[%emt 0:00:11]} a5 {[%emt 0:00:59]} 46. b5 {[%emt 0:00:51]} Rxb5 {[%emt 0:03:16]} 0-1

[Event "DVM U10 2024"]
[Site "Duesseldorf"]
[Date "2024.12.29"]
[Round "7"]
[White "Kinateder, Vitus"]
[Black "Vlad, Mark"]
[Result "1-0"]
[ECO "A00"]
[WhiteElo "1605"]
[BlackElo "1439"]
[Annotator "NA"]
[PlyCount "123"]
[EventDate "2024.12.23"]
[EventType "team-tourn"]
[EventRounds "7"]
[EventCountry "GER"]
[SourceTitle "playchess.com"]
[Source "ChessBase"]
[SourceQuality "1"]
[TimeControl "3300+5"]

1. e4 {[%emt 0:00:01]} d5 {[%emt 0:00:07]} 2. Nc3 {[%emt 0:00:04]} d4 {[%emt 0:00:33]} 3. Nce2 {[%emt 0:00:10]} e5 {[%emt 0:00:53]} 4. a3 {[%emt 0:00:07]} Nc6 {[%emt 0:01:31]} 5. d3 {[%emt 0:00:17]} Bd6 {[%emt 0:01:27]} 6. g3 {[%emt 0:00:39]} Nge7 {[%emt 0:00:56]} 7. Bg2 {[%emt 0:00:29]} O-O {[%emt 0:01:22]} 8. f4 {[%emt 0:00:13]} f6 {[%emt 0:01:56]} 9. f5 {[%emt 0:00:15]} g6 {[%emt 0:02:02]} 10. g4 {[%emt 0:00:44]} Kh8 {[%emt 0:02:01]} 11. Nf3 {[%emt 0:01:13]} Rg8 {[%emt 0:01:21]} 12. Ng3 {[%emt 0:00:36]} gxf5 {[%emt 0:01:17]} 13. gxf5 {[%emt 0:00:20]} b6 {[%emt 0:02:34]} 14. Nh4 {[%emt 0:01:37]} Qe8 {[%emt 0:03:01]} 15. Nh5 {[%emt 0:00:16]} Qf7 {[%emt 0:00:57]} 16. Bh6 {[%emt 0:03:30]} Bb7 {[%emt 0:03:00]} 17. Qe2 {[%emt 0:01:51]} Nc8 {[%emt 0:03:55]} 18. Kd2 {[%emt 0:01:13]} Bf8 {[%emt 0:01:36]} 19. Bxf8 {[%emt 0:01:02]} Qxf8 {[%emt 0:00:13]} 20. Rag1 {[%emt 0:00:34]} Qh6+ {[%emt 0:00:28]} 21. Kd1 {[%emt 0:00:25]} Nd6 {[%emt 0:01:05]} 22. Bf3 {[%emt 0:01:36]} b5 {[%emt 0:01:45]} 23. Qd2 {[%emt 0:00:37]} Qxd2+ {[%emt 0:00:43]} 24. Kxd2 {[%emt 0:00:14]} Rgf8 {[%emt 0:02:13]} 25. Rg7 {[%emt 0:00:48]} Ne8 {[%emt 0:01:14]} 26. Rg2 {[%emt 0:01:10]} a5 {[%emt 0:01:16]} 27. Rhg1 {[%emt 0:00:39]} b4 {[%emt 0:02:30]} 28. a4 {[%emt 0:01:33]} Ba6 {[%emt 0:02:01]} 29. Be2 {[%emt 0:04:03]} Rb8 {[%emt 0:01:56]} 30. b3 {[%emt 0:00:27]} Na7 {[%emt 0:02:18]} 31. Ng7 {[%emt 0:01:55]} Nxg7 {[%emt 0:01:08]} 32. Rxg7 {[%emt 0:00:13]} Rb7 {[%emt 0:00:18]} 33. Rd7 {[%emt 0:00:24]} c6 {[%emt 0:01:06]} 34. Rgg7 {[%emt 0:00:24]} Rxd7 {[%emt 0:00:31]} 35. Rxd7 {[%emt 0:00:08]} Ra8 {[%emt 0:01:01]} 36. Rf7 {[%emt 0:00:20]} Kg8 {[%emt 0:00:38]} 37. Rxf6 {[%emt 0:00:07]} Kg7 {[%emt 0:00:29]} 38. Re6 {[%emt 0:00:15]} Bc8 {[%emt 0:00:10]} 39. Rxe5 {[%emt 0:00:11]} Kf6 {[%emt 0:00:20]} 40. Rxa5 {[%emt 0:00:31]} Bd7 {[%emt 0:00:43]} 41. Nf3 {[%emt 0:00:20]} h6 {[%emt 0:01:40]} 42. Nxd4 {[%emt 0:00:10]} Ke7 {[%emt 0:00:42]} 43. h4 {[%emt 0:01:05]} Kf7 {[%emt 0:00:11]} 44. e5 {[%emt 0:00:55]} Bc8 {[%emt 0:00:15]} 45. Nxc6 {[%emt 0:00:13]} Bxf5 {[%emt 0:00:23]} 46. Rxa7+ {[%emt 0:00:07]} Rxa7 {[%emt 0:00:03]} 47. Nxa7 {[%emt 0:00:06]} Ke6 {[%emt 0:00:03]} 48. d4 {[%emt 0:00:16]} Kd5 {[%emt 0:00:08]} 49. c3 {[%emt 0:00:09]} bxc3+ {[%emt 0:00:05]} 50. Kxc3 {[%emt 0:00:03]} Be4 {[%emt 0:00:25]} 51. Bd3 {[%emt 0:00:14]} Bxd3 {[%emt 0:00:22]} 52. Kxd3 {[%emt 0:00:06]} Ke6 53. a5 {[%emt 0:00:09]} Kd7 {[%emt 0:00:04]} 54. a6 {[%emt 0:00:39]} Ke6 {[%emt 0:00:05]} 55. Nb5 {[%emt 0:00:08]} Kd7 {[%emt 0:00:03]} 56. a7 {[%emt 0:00:09]} h5 {[%emt 0:00:02]} 57. a8=Q {[%emt 0:00:12]} Ke6 {[%emt 0:00:04]} 58. Qc6+ {[%emt 0:00:11]} Kf5 {[%emt 0:00:02]} 59. Qf6+ {[%emt 0:00:10]} Kg4 {[%emt 0:00:04]} 60. Qg5+ {[%emt 0:00:08]} Kh3 {[%emt 0:00:03]} 61. Ke3 {[%emt 0:00:16]} Kh2 {[%emt 0:00:05]} 62. Kf3 {[%emt 0:00:06]} 1-0

[Event "DVM U10 2024"]
[Site "Duesseldorf"]
[Date "2024.12.29"]
[Round "7"]
[White "von Flottwell, Lionel"]
[Black "Mueller, Konstantin"]
[Result "0-1"]
[ECO "B22"]
[WhiteElo "1597"]
[BlackElo "1957"]
[Annotator "NA"]
[PlyCount "74"]
[EventDate "2024.12.23"]
[EventType "team-tourn"]
[EventRounds "7"]
[EventCountry "GER"]
[SourceTitle "playchess.com"]
[Source "ChessBase"]
[SourceQuality "1"]
[TimeControl "3300+5"]

1. e4 {[%emt 0:00:04]} c5 {[%emt 0:00:04]} 2. Nf3 {[%emt 0:00:13]} e6 {[%emt 0:00:05]} 3. c3 {[%emt 0:00:18]} Nf6 {[%emt 0:00:14]} 4. e5 {[%emt 0:00:06]} Nd5 {[%emt 0:00:06]} 5. d4 {[%emt 0:00:36]} cxd4 {[%emt 0:00:08]} 6. cxd4 {[%emt 0:00:05]} d6 {[%emt 0:00:18]} 7. Nc3 {[%emt 0:04:43]} Nxc3 {[%emt 0:00:06]} 8. bxc3 {[%emt 0:00:15]} Qc7 {[%emt 0:00:10]} 9. Be2 {[%emt 0:02:44]} Nd7 {[%emt 0:05:15]} 10. exd6 {[%emt 0:04:23]} Bxd6 {[%emt 0:00:06]} 11. c4 {[%emt 0:01:39]} b6 {[%emt 0:03:04]} 12. O-O {[%emt 0:05:32]} O-O {[%emt 0:00:38]} 13. Bb2 {[%emt 0:05:28]} Bb7 {[%emt 0:01:32]} 14. h3 {[%emt 0:03:35]} Nf6 {[%emt 0:00:34]} 15. Rc1 {[%emt 0:01:28]} Rfd8 {[%emt 0:00:42]} 16. Bc3 {[%emt 0:10:00]} Ne4 {[%emt 0:00:48]} 17. Ne1 {[%emt 0:05:03]} Bh2+ {[%emt 0:08:44]} 18. Kh1 {[%emt 0:00:18]} Bf4 {[%emt 0:00:05]} 19. Rc2 {[%emt 0:01:07]} e5 {[%emt 0:00:44]} 20. d5 {[%emt 0:00:51]} Nxc3 {[%emt 0:00:57]} 21. Rxc3 {[%emt 0:01:39]} Bxd5 {[%emt 0:00:14]} 22. Qc2 {[%emt 0:02:18]} Rac8 {[%emt 0:01:42]} 23. Bd3 {[%emt 0:01:51]} g6 {[%emt 0:03:09]} 24. h4 {[%emt 0:00:49]} b5 {[%emt 0:01:06]} 25. h5 {[%emt 0:00:41]} bxc4 {[%emt 0:00:23]} 26. hxg6 {[%emt 0:00:32]} cxd3 {[%emt 0:01:52]} 27. gxh7+ {[%emt 0:00:21]} Kh8 {[%emt 0:00:21]} 28. Rxc7 {[%emt 0:00:05]} dxc2 {[%emt 0:00:04]} 29. Rxc8 {[%emt 0:00:09]} Rxc8 {[%emt 0:00:04]} 30. Nd3 {[%emt 0:00:04]} Bc4 {[%emt 0:00:12]} 31. Nxf4 {[%emt 0:00:21]} Bxf1 {[%emt 0:00:05]} 32. Nd5 {[%emt 0:00:09]} c1=Q {[%emt 0:00:08]} 33. Kh2 {[%emt 0:00:04]} Qh6+ {[%emt 0:00:12]} 34. Kg1 {[%emt 0:00:06]} Rc1 {[%emt 0:00:04]} 35. f3 {[%emt 0:00:02]} Qh4 {[%emt 0:00:21]} 36. Ne3 {[%emt 0:00:18]} Ba6+ {[%emt 0:00:16]} 37. Nf1 {[%emt 0:00:06]} Rxf1# {[%emt 0:00:05]} 0-1

[Event "DVM U10 2024"]
[Site "Duesseldorf"]
[Date "2024.12.29"]
[Round "7"]
[White "Wessels, Keke"]
[Black "Bienbeck, Matthis"]
[Result "1/2-1/2"]
[ECO "B13"]
[WhiteElo "1568"]
[BlackElo "1490"]
[Annotator "NA"]
[PlyCount "184"]
[EventDate "2024.12.23"]
[EventType "team-tourn"]
[EventRounds "7"]
[EventCountry "GER"]
[SourceTitle "playchess.com"]
[Source "ChessBase"]
[SourceQuality "1"]
[TimeControl "3300+5"]

1. d4 {[%emt 0:00:07]} Nf6 {[%emt 0:00:04]} 2. Nc3 {[%emt 0:00:12]} d5 {[%emt 0:00:08]} 3. Bf4 {[%emt 0:00:20]} c5 {[%emt 0:00:07]} 4. e3 {[%emt 0:00:16]} cxd4 {[%emt 0:00:11]} 5. exd4 {[%emt 0:00:19]} a6 {[%emt 0:00:04]} 6. Nf3 {[%emt 0:00:34]} Nc6 {[%emt 0:00:07]} 7. Ne5 {[%emt 0:00:50]} Bd7 {[%emt 0:00:06]} 8. Be2 {[%emt 0:07:04]} Rc8 {[%emt 0:01:54]} 9. O-O {[%emt 0:01:02]} e6 {[%emt 0:00:44]} 10. Na4 {[%emt 0:03:48]} Nxe5 {[%emt 0:00:25]} 11. dxe5 {[%emt 0:01:08]} Bxa4 {[%emt 0:02:20]} 12. Qd4 {[%emt 0:04:00]} Bc6 {[%emt 0:03:46]} 13. exf6 {[%emt 0:01:45]} Qxf6 {[%emt 0:00:15]} 14. Qxf6 {[%emt 0:00:45]} gxf6 {[%emt 0:00:08]} 15. Rac1 {[%emt 0:00:59]} b5 {[%emt 0:00:08]} 16. Rfe1 {[%emt 0:00:42]} Bg7 {[%emt 0:06:10]} 17. c3 {[%emt 0:03:12]} Ke7 {[%emt 0:01:35]} 18. Bf3 {[%emt 0:02:35]} Rhd8 {[%emt 0:00:46]} 19. Be3 {[%emt 0:04:42]} Ba8 {[%emt 0:00:45]} 20. Bb6 {[%emt 0:01:03]} Rd7 {[%emt 0:01:10]} 21. Ba5 {[%emt 0:01:15]} Bf8 {[%emt 0:00:45]} 22. Rcd1 {[%emt 0:02:02]} Ke8 {[%emt 0:03:01]} 23. Rd4 {[%emt 0:04:02]} Rc4 {[%emt 0:00:46]} 24. Red1 {[%emt 0:00:58]} Be7 {[%emt 0:10:45]} 25. Rxc4 {[%emt 0:01:19]} bxc4 {[%emt 0:00:22]} 26. Kf1 {[%emt 0:01:52]} Bd6 {[%emt 0:01:22]} 27. Ke2 {[%emt 0:02:13]} Rb7 {[%emt 0:00:20]} 28. Rd2 {[%emt 0:00:40]} Rb5 {[%emt 0:00:23]} 29. Bb4 {[%emt 0:00:45]} Bxb4 {[%emt 0:00:08]} 30. cxb4 {[%emt 0:00:08]} Rxb4 {[%emt 0:00:05]} 31. Kd1 {[%emt 0:00:33]} f5 {[%emt 0:01:28]} 32. Kc2 {[%emt 0:00:22]} Kd7 {[%emt 0:00:54]} 33. Rd4 {[%emt 0:00:12]} Rb8 {[%emt 0:00:10]} 34. Rh4 {[%emt 0:00:20]} Rh8 {[%emt 0:00:09]} 35. Kc3 {[%emt 0:00:33]} a5 {[%emt 0:00:44]} 36. Kd4 {[%emt 0:00:12]} Kd6 {[%emt 0:00:12]} 37. Bh5 {[%emt 0:00:17]} f6 {[%emt 0:00:24]} 38. Kc3 {[%emt 0:00:33]} h6 {[%emt 0:00:26]} 39. Rf4 {[%emt 0:00:28]} Rg8 {[%emt 0:01:05]} 40. g3 {[%emt 0:00:08]} Rg5 {[%emt 0:00:25]} 41. Rh4 {[%emt 0:00:26]} Rg8 {[%emt 0:00:31]} 42. b3 {[%emt 0:00:12]} cxb3 {[%emt 0:00:11]} 43. axb3 {[%emt 0:00:01]} Rc8+ {[%emt 0:00:19]} 44. Kb2 {[%emt 0:00:13]} Bc6 {[%emt 0:00:27]} 45. Be2 {[%emt 0:00:18]} Rh8 {[%emt 0:00:19]} 46. f4 {[%emt 0:00:33]} Rh7 {[%emt 0:01:03]} 47. Kc3 {[%emt 0:00:24]} Kc5 {[%emt 0:00:06]} 48. Bd3 {[%emt 0:00:20]} Bb5 {[%emt 0:00:32]} 49. Bxb5 {[%emt 0:00:30]} Kxb5 {[%emt 0:00:09]} 50. h3 {[%emt 0:00:00]} Rc7+ {[%emt 0:00:16]} 51. Kb2 {[%emt 0:00:14]} d4 {[%emt 0:00:18]} 52. Rxh6 {[%emt 0:00:04]} d3 {[%emt 0:00:13]} 53. Rh8 {[%emt 0:00:15]} Rc2+ {[%emt 0:00:44]} 54. Kb1 {[%emt 0:00:07]} Rg2 {[%emt 0:00:17]} 55. Rb8+ {[%emt 0:00:21]} Kc5 {[%emt 0:00:09]} 56. Rc8+ {[%emt 0:00:25]} Kd4 {[%emt 0:00:05]} 57. Rd8+ {[%emt 0:00:05]} Ke3 {[%emt 0:00:05]} 58. h4 {[%emt 0:00:16]} Rxg3 {[%emt 0:00:04]} 59. h5 {[%emt 0:00:02]} Rh3 {[%emt 0:00:19]} 60. Rd6 {[%emt 0:00:17]} Rh1+ {[%emt 0:00:29]} 61. Kb2 {[%emt 0:00:04]} e5 {[%emt 0:00:49]} 62. fxe5 {[%emt 0:00:14]} fxe5 {[%emt 0:00:08]} 63. h6 {[%emt 0:00:02]} d2 {[%emt 0:00:16]} 64. Kc2 {[%emt 0:00:01]} d1=Q+ {[%emt 0:00:11]} 65. Rxd1 {[%emt 0:00:02]} Rxh6 {[%emt 0:00:13]} 66. Rd5 {[%emt 0:00:04]} Ke4 {[%emt 0:00:24]} 67. Rxa5 {[%emt 0:00:02]} f4 {[%emt 0:00:09]} 68. b4 {[%emt 0:00:02]} f3 {[%emt 0:00:20]} 69. b5 {[%emt 0:00:23]} Rb6 {[%emt 0:00:58]} 70. Ra4+ {[%emt 0:00:04]} Kf5 {[%emt 0:00:10]} 71. Rb4 {[%emt 0:00:08]} e4 {[%emt 0:00:12]} 72. Kd2 {[%emt 0:00:02]} Kf4 {[%emt 0:00:06]} 73. Ke1 {[%emt 0:00:06]} Ke5 {[%emt 0:00:47]} 74. Kf2 {[%emt 0:00:02]} Kf4 {[%emt 0:00:02]} 75. Rb3 {[%emt 0:00:11]} Kg4 {[%emt 0:01:03]} 76. Ke3 {[%emt 0:00:02]} Kf5 {[%emt 0:00:19]} 77. Rb4 {[%emt 0:00:02]} f2 {[%emt 0:00:27]} 78. Kxf2 {[%emt 0:00:04]} Kf4 79. Ke2 {[%emt 0:00:04]} Rh6 {[%emt 0:00:55]} 80. b6 {[%emt 0:00:05]} Rh2+ {[%emt 0:00:05]} 81. Kf1 {[%emt 0:00:04]} Kf3 {[%emt 0:00:06]} 82. Ke1 {[%emt 0:00:08]} Rh8 {[%emt 0:00:12]} 83. b7 {[%emt 0:00:04]} Rb8 {[%emt 0:00:01]} 84. Kf1 {[%emt 0:00:04]} e3 {[%emt 0:00:02]} 85. Rb3 {[%emt 0:00:04]} Rh8 {[%emt 0:00:25]} 86. Kg1 {[%emt 0:00:19]} Rg8+ {[%emt 0:00:03]} 87. Kh1 {[%emt 0:00:16]} Kf2 {[%emt 0:00:17]} 88. b8=Q {[%emt 0:00:16]} Rxb8 {[%emt 0:01:25]} 89. Rxb8 {[%emt 0:00:00]} e2 {[%emt 0:00:01]} 90. Rb2 {[%emt 0:00:02]} Kf1 {[%emt 0:00:04]} 91. Rb1+ {[%emt 0:00:09]} e1=Q {[%emt 0:00:03]} 92. Rxe1+ {[%emt 0:00:00]} Kxe1 {[%emt 0:00:01]} 1/2-1/2

[Event "DVM U10 2024"]
[Site "Duesseldorf"]
[Date "2024.12.29"]
[Round "7"]
[White "Nune, Likhith Siddharth"]
[Black "Karabetyan, Levon"]
[Result "0-1"]
[ECO "C54"]
[WhiteElo "1533"]
[BlackElo "1230"]
[Annotator "NA"]
[PlyCount "98"]
[EventDate "2024.12.23"]
[EventType "team-tourn"]
[EventRounds "7"]
[EventCountry "GER"]
[SourceTitle "playchess.com"]
[Source "ChessBase"]
[SourceQuality "1"]
[TimeControl "3300+5"]

1. e4 {[%emt 0:00:02]} e5 {[%emt 0:00:05]} 2. Nf3 {[%emt 0:00:08]} Nc6 {[%emt 0:00:10]} 3. Bc4 {[%emt 0:00:13]} Bc5 {[%emt 0:00:10]} 4. c3 {[%emt 0:00:09]} Nf6 {[%emt 0:00:45]} 5. d4 {[%emt 0:00:20]} exd4 {[%emt 0:00:55]} 6. cxd4 {[%emt 0:00:12]} Bb4+ {[%emt 0:00:37]} 7. Nc3 {[%emt 0:00:10]} Nxe4 {[%emt 0:02:09]} 8. O-O {[%emt 0:00:11]} Nxc3 {[%emt 0:01:42]} 9. bxc3 {[%emt 0:00:07]} Bxc3 {[%emt 0:00:11]} 10. Ba3 {[%emt 0:00:08]} d6 {[%emt 0:02:51]} 11. Rc1 {[%emt 0:00:12]} Ba5 {[%emt 0:01:33]} 12. Qa4 {[%emt 0:00:57]} O-O {[%emt 0:01:57]} 13. d5 {[%emt 0:00:26]} Bb6 {[%emt 0:04:33]} 14. dxc6 {[%emt 0:00:17]} bxc6 {[%emt 0:01:44]} 15. Qxc6 {[%emt 0:00:25]} Bd7 {[%emt 0:00:56]} 16. Qe4 {[%emt 0:00:41]} Re8 {[%emt 0:02:14]} 17. Qf4 {[%emt 0:01:13]} Be6 {[%emt 0:04:02]} 18. Ng5 {[%emt 0:04:35]} Bxc4 {[%emt 0:01:44]} 19. Rxc4 {[%emt 0:01:13]} Qf6 {[%emt 0:01:55]} 20. Qxf6 {[%emt 0:01:07]} gxf6 {[%emt 0:00:07]} 21. Ne4 {[%emt 0:02:48]} Re6 {[%emt 0:01:40]} 22. Nd2 {[%emt 0:02:51]} f5 {[%emt 0:04:51]} 23. Nf3 {[%emt 0:01:10]} Re2 {[%emt 0:03:21]} 24. Ra1 {[%emt 0:02:08]} Rxf2 {[%emt 0:00:55]} 25. Kh1 {[%emt 0:03:56]} Re8 {[%emt 0:02:06]} 26. Rcc1 {[%emt 0:03:44]} Ree2 {[%emt 0:01:15]} 27. Re1 {[%emt 0:05:15]} Rxe1+ {[%emt 0:00:41]} 28. Rxe1 {[%emt 0:00:13]} Rxa2 {[%emt 0:00:12]} 29. Bb4 {[%emt 0:00:42]} Ra4 {[%emt 0:00:47]} 30. Re8+ {[%emt 0:04:08]} Kg7 {[%emt 0:00:04]} 31. Bc3+ {[%emt 0:00:13]} f6 {[%emt 0:01:41]} 32. h3 {[%emt 0:01:32]} Re4 {[%emt 0:00:35]} 33. Rxe4 {[%emt 0:00:41]} fxe4 {[%emt 0:00:11]} 34. Bd4 {[%emt 0:00:37]} exf3 {[%emt 0:00:21]} 35. Bxb6 {[%emt 0:00:18]} axb6 {[%emt 0:00:05]} 36. gxf3 {[%emt 0:00:15]} b5 {[%emt 0:00:09]} 37. Kg2 {[%emt 0:00:33]} b4 {[%emt 0:00:04]} 38. Kf1 {[%emt 0:00:11]} b3 {[%emt 0:00:06]} 39. Ke2 {[%emt 0:01:23]} b2 {[%emt 0:00:06]} 40. Ke3 {[%emt 0:00:12]} b1=Q {[%emt 0:01:04]} 41. Kd4 {[%emt 0:01:22]} c5+ {[%emt 0:00:00]} 42. Kd5 {[%emt 0:01:13]} Qd3+ {[%emt 0:00:00]} 43. Kc6 {[%emt 0:00:27]} c4 {[%emt 0:00:00]} 44. Kd7 {[%emt 0:00:49]} c3 {[%emt 0:00:00]} 45. f4 {[%emt 0:00:10]} c2 {[%emt 0:00:05]} 46. f5 {[%emt 0:00:10]} c1=Q {[%emt 0:00:20]} 47. h4 {[%emt 0:00:13]} Qxf5+ {[%emt 0:00:31]} 48. Ke8 {[%emt 0:00:08]} Qcc8+ {[%emt 0:00:16]} 49. Ke7 {[%emt 0:00:15]} Qcd7# {[%emt 0:00:18]} 0-1

[Event "DVM U10 2024"]
[Site "Duesseldorf"]
[Date "2024.12.29"]
[Round "7"]
[White "Schonlau, Leopold"]
[Black "Klaus, Simon"]
[Result "0-1"]
[ECO "B01"]
[WhiteElo "1533"]
[BlackElo "1197"]
[Annotator "NA"]
[PlyCount "154"]
[EventDate "2024.12.23"]
[EventType "team-tourn"]
[EventRounds "7"]
[EventCountry "GER"]
[SourceTitle "playchess.com"]
[Source "ChessBase"]
[SourceQuality "1"]
[TimeControl "3300+5"]

1. e4 {[%emt 0:00:02]} d5 {[%emt 0:00:09]} 2. exd5 {[%emt 0:00:10]} Qxd5 {[%emt 0:00:06]} 3. Nc3 {[%emt 0:00:08]} Qa5 {[%emt 0:00:08]} 4. d4 {[%emt 0:00:46]} Nf6 {[%emt 0:00:21]} 5. Nf3 {[%emt 0:00:12]} Bg4 {[%emt 0:00:13]} 6. h3 {[%emt 0:00:09]} Bxf3 {[%emt 0:00:09]} 7. Qxf3 {[%emt 0:00:09]} c6 {[%emt 0:00:14]} 8. Bd2 {[%emt 0:00:29]} Nbd7 {[%emt 0:00:15]} 9. Bc4 {[%emt 0:02:00]} e6 {[%emt 0:00:40]} 10. Qg3 {[%emt 0:02:31]} Bb4 {[%emt 0:03:54]} 11. a3 {[%emt 0:00:20]} Bxc3 {[%emt 0:04:41]} 12. Bxc3 {[%emt 0:00:48]} Qf5 {[%emt 0:02:03]} 13. Bd3 {[%emt 0:00:28]} Qd5 {[%emt 0:03:04]} 14. Qxg7 {[%emt 0:02:08]} Rg8 {[%emt 0:01:35]} 15. Qh6 {[%emt 0:00:44]} Qxg2 {[%emt 0:02:07]} 16. O-O-O {[%emt 0:01:25]} Qg5+ {[%emt 0:02:44]} 17. Qxg5 {[%emt 0:00:08]} Rxg5 {[%emt 0:00:07]} 18. h4 {[%emt 0:00:22]} Rg2 {[%emt 0:01:41]} 19. f3 {[%emt 0:01:43]} O-O-O {[%emt 0:00:29]} 20. Bc4 {[%emt 0:00:42]} Nd5 {[%emt 0:02:13]} 21. Bd3 {[%emt 0:00:44]} Nxc3 {[%emt 0:00:25]} 22. bxc3 {[%emt 0:00:26]} Nf6 {[%emt 0:00:20]} 23. Rdg1 {[%emt 0:00:22]} Rdg8 {[%emt 0:00:46]} 24. Rxg2 {[%emt 0:00:54]} Rxg2 {[%emt 0:00:13]} 25. h5 {[%emt 0:00:08]} h6 {[%emt 0:00:16]} 26. c4 {[%emt 0:00:40]} Rf2 {[%emt 0:00:37]} 27. Be4 {[%emt 0:00:31]} Nxe4 {[%emt 0:00:45]} 28. fxe4 {[%emt 0:00:21]} Rf4 {[%emt 0:00:19]} 29. Rg1 {[%emt 0:00:15]} Rxe4 {[%emt 0:02:16]} 30. Rg7 {[%emt 0:00:07]} Rh4 {[%emt 0:00:26]} 31. Rxf7 {[%emt 0:00:14]} Rxh5 {[%emt 0:00:21]} 32. Re7 {[%emt 0:00:14]} Rh4 {[%emt 0:00:37]} 33. Rxe6 {[%emt 0:00:11]} Rxd4 {[%emt 0:00:12]} 34. Rxh6 {[%emt 0:00:09]} Rxc4 {[%emt 0:00:14]} 35. Kb2 {[%emt 0:00:07]} Kc7 {[%emt 0:00:27]} 36. Kb3 {[%emt 0:00:09]} Rg4 {[%emt 0:00:16]} 37. c3 {[%emt 0:00:16]} Kb6 {[%emt 0:00:16]} 38. Rh7 {[%emt 0:00:16]} Rg5 {[%emt 0:05:39]} 39. a4 {[%emt 0:01:09]} Rd5 {[%emt 0:03:04]} 40. Rh4 {[%emt 0:01:16]} Re5 {[%emt 0:01:53]} 41. Rg4 {[%emt 0:00:24]} a5 {[%emt 0:01:26]} 42. Rh4 {[%emt 0:00:21]} Re8 {[%emt 0:02:33]} 43. Rg4 {[%emt 0:01:21]} Ka6 {[%emt 0:00:33]} 44. Rh4 {[%emt 0:00:26]} b5 {[%emt 0:00:47]} 45. Rg4 {[%emt 0:01:42]} bxa4+ {[%emt 0:01:37]} 46. Rxa4 {[%emt 0:00:28]} Rb8+ {[%emt 0:00:14]} 47. Kc4 {[%emt 0:00:34]} Rb5 {[%emt 0:00:20]} 48. Kd4 {[%emt 0:00:25]} Rh5 {[%emt 0:00:35]} 49. Kd3 {[%emt 0:00:28]} Kb5 {[%emt 0:00:21]} 50. Ra1 {[%emt 0:00:22]} Rh3+ {[%emt 0:00:10]} 51. Kd4 {[%emt 0:00:11]} c5+ {[%emt 0:00:13]} 52. Kd5 {[%emt 0:00:19]} Rxc3 {[%emt 0:00:03]} 53. Rb1+ {[%emt 0:00:12]} Ka4 {[%emt 0:00:10]} 54. Ra1+ {[%emt 0:00:18]} Ra3 {[%emt 0:00:10]} 55. Rc1 {[%emt 0:00:17]} Rh3 {[%emt 0:00:44]} 56. Kxc5 {[%emt 0:00:16]} Rh5+ {[%emt 0:00:04]} 57. Kc4 {[%emt 0:00:09]} Rh4+ {[%emt 0:00:08]} 58. Kc5 {[%emt 0:00:09]} Rh5+ {[%emt 0:00:28]} 59. Kc4 {[%emt 0:00:08]} Rh4+ {[%emt 0:00:13]} 60. Kc5 {[%emt 0:00:05]} Kb3 {[%emt 0:00:33]} 61. Ra1 {[%emt 0:01:17]} a4 {[%emt 0:00:05]} 62. Kb5 {[%emt 0:00:08]} a3 {[%emt 0:00:02]} 63. Rb1+ {[%emt 0:00:49]} Kc2 {[%emt 0:00:28]} 64. Ra1 {[%emt 0:00:09]} Kb2 {[%emt 0:00:07]} 65. Rxa3 {[%emt 0:00:04]} Kxa3 {[%emt 0:00:02]} 66. Kc5 {[%emt 0:00:07]} Kb3 {[%emt 0:00:02]} 67. Kd5 {[%emt 0:00:08]} Kc3 {[%emt 0:00:01]} 68. Ke5 {[%emt 0:00:09]} Kd3 {[%emt 0:00:02]} 69. Kf5 {[%emt 0:00:11]} Ke3 {[%emt 0:00:02]} 70. Kg5 {[%emt 0:00:07]} Rf4 {[%emt 0:00:03]} 71. Kh5 {[%emt 0:00:15]} Rf1 {[%emt 0:00:05]} 72. Kh4 {[%emt 0:00:07]} Rg1 {[%emt 0:00:02]} 73. Kh5 {[%emt 0:00:11]} Kf4 {[%emt 0:00:02]} 74. Kh6 {[%emt 0:00:09]} Kf5 {[%emt 0:00:01]} 75. Kh7 {[%emt 0:00:11]} Kf6 {[%emt 0:00:02]} 76. Kh8 {[%emt 0:00:07]} Kf7 {[%emt 0:00:02]} 77. Kh7 {[%emt 0:00:08]} Rh1# {[%emt 0:00:01]} 0-1